fUSD/lending_fUSD_20260607
["ID","MTS","AMOUNT","RATE_DAILY","PERIOD"]
[424399154,1780828253000,-672.21629885,0.00029664,2]
[424399147,1780828253000,-152.0,0.00029606,31]
[424399151,1780828253000,-1153.43,0.0002964,30]
[424399157,1780828253000,-362.92023714,0.00029664,2]
[424399153,1780828253000,-497.24270888,0.00029664,2]
[424399155,1780828253000,-459.52186444,0.00029664,2]
[424399156,1780828253000,-174.51597434,0.00029664,2]
[424399160,1780828253000,-591.32384657,0.00029664,2]
[424399159,1780828253000,-544.84453001,0.00029664,2]
[424399136,1780828253000,-500.0,0.00029589,60]
[424399149,1780828253000,-814.27,0.0002962,2]
[424399132,1780828253000,-1035.0,0.00029589,60]
[424399111,1780828253000,-1035.0,0.00029589,60]
[424399129,1780828253000,-150.0,0.00029589,60]
[424399170,1780828253000,-42.27349318,0.00029664,2]
[424399107,1780828253000,-500.0,0.00029589,60]
[424399109,1780828253000,-365.19884206,0.00029589,60]
[424399119,1780828253000,-500.0,0.00029589,60]
[424399120,1780828253000,-500.0,0.00029589,60]
[424399114,1780828253000,-1035.0,0.00029589,60]
[424399113,1780828253000,-1035.0,0.00029589,60]
[424399112,1780828253000,-1035.0,0.00029589,60]
[424399108,1780828253000,-1035.0,0.00029589,60]
[424399118,1780828253000,-500.0,0.00029589,60]
[424399116,1780828253000,-500.0,0.00029589,60]
[424399110,1780828253000,-1035.0,0.00029589,60]
[424399115,1780828253000,-1035.0,0.00029589,60]
[424399117,1780828253000,-500.0,0.00029589,60]
[424399123,1780828253000,-451.75288582,0.00029589,60]
[424399135,1780828253000,-500.0,0.00029589,60]
[424399134,1780828253000,-500.0,0.00029589,60]
[424399133,1780828253000,-500.0,0.00029589,60]
[424399124,1780828253000,-1035.0,0.00029589,60]
[424399126,1780828253000,-150.0,0.00029589,60]
[424399131,1780828253000,-500.0,0.00029589,60]
[424399127,1780828253000,-150.0,0.00029589,60]
[424399122,1780828253000,-500.0,0.00029589,60]
[424399125,1780828253000,-150.0,0.00029589,60]
[424399130,1780828253000,-197.96496476,0.00029589,60]
[424399128,1780828253000,-150.0,0.00029589,60]
[424399162,1780828253000,-564.32399969,0.00029664,2]
[424399121,1780828253000,-500.0,0.00029589,60]
[424399168,1780828253000,-165.03593474,0.00029664,2]
[424399191,1780828253000,-218.85945185,0.00029666,2]
[424399194,1780828253000,-493.99229731,0.00029666,2]
[424399197,1780828253000,-173.51621744,0.00029666,2]
[424399201,1780828253000,-520.83168954,0.00029666,2]
[424399199,1780828253000,-244.43556914,0.00029666,2]
[424399200,1780828253000,-421.11966166,0.00029666,2]
[424399198,1780828253000,-210.92447281,0.00029666,2]
[424399202,1780828253000,-233.23869709,0.00029666,2]
[424399208,1780828253000,-354.91356291,0.00029666,2]
[424399209,1780828253000,-242.62841635,0.00029666,2]
[424399207,1780828253000,-529.34542604,0.00029666,2]
[424399205,1780828253000,-468.44708788,0.00029666,2]
[424399206,1780828253000,-466.9446184,0.00029666,2]
[424399204,1780828253000,-554.39126561,0.00029666,2]
[424399203,1780828253000,-298.12493231,0.00029666,2]
[424399211,1780828253000,-348.91715148,0.00029666,2]
[424399215,1780828253000,-652.53493119,0.00029666,2]
[424399210,1780828253000,-166.70256976,0.00029666,2]
[424399212,1780828253000,-187.6227394,0.00029666,2]
[424399214,1780828253000,-442.90220179,0.00029666,2]
[424399213,1780828253000,-338.53628017,0.00029666,2]
[424399218,1780828253000,-517.10982378,0.00029666,2]
[424399216,1780828253000,-529.24658482,0.00029666,2]
[424399219,1780828253000,-225.37256483,0.00029666,2]
[424399217,1780828253000,-483.88795737,0.00029666,2]
[424399192,1780828253000,-556.08225977,0.00029666,2]
[424399193,1780828253000,-525.95402183,0.00029666,2]
[424399161,1780828253000,-540.64800893,0.00029664,2]
[424399188,1780828253000,-314.45735751,0.00029666,2]
[424399190,1780828253000,-223.32993292,0.00029666,2]
[424399163,1780828253000,-409.4956841,0.00029664,2]
[424399164,1780828253000,-452.07839166,0.00029664,2]
[424399169,1780828253000,-350.72436359,0.00029664,2]
[424399167,1780828253000,-357.44912473,0.00029664,2]
[424399166,1780828253000,-526.67984119,0.00029664,2]
[424399171,1780828253000,-172.48800084,0.00029664,2]
[424399173,1780828253000,-635.95020415,0.00029664,2]
[424399174,1780828253000,-497.57479267,0.00029664,2]
[424399176,1780828253000,-463.53779015,0.00029664,2]
[424399175,1780828253000,-489.53125236,0.00029664,2]
[424399177,1780828253000,-535.31486166,0.00029664,2]
[424399178,1780828253000,-508.27296515,0.00029664,2]
[424399165,1780828253000,-413.94635796,0.00029664,2]
[424399181,1780828253000,-545.43158259,0.00029664,2]
[424399179,1780828253000,-232.14031331,0.00029664,2]
[424399187,1780828253000,-365.62696951,0.00029664,2]
[424399195,1780828253000,-237.39890735,0.00029666,2]
[424399186,1780828253000,-288.19663596,0.00029664,2]
[424399189,1780828253000,-505.18416007,0.00029666,2]
[424399184,1780828253000,-573.78122545,0.00029664,2]
[424399185,1780828253000,-174.70730463,0.00029664,2]
[424399182,1780828253000,-268.67333081,0.00029664,2]
[424399180,1780828253000,-211.88297606,0.00029664,2]
[424399172,1780828253000,-357.13012477,0.00029664,2]
[424399183,1780828253000,-278.19677052,0.00029664,2]
[424399196,1780828253000,-384.94129719,0.00029666,2]
[424399234,1780828254000,-483.03693348,0.00029666,2]
[424399235,1780828254000,-283.61108829,0.00029666,2]
[424399230,1780828254000,-467.1795547,0.00029666,2]
[424399228,1780828254000,-311.19907951,0.00029666,2]
[424399227,1780828254000,-354.07234993,0.00029666,2]
[424399231,1780828254000,-268.94983147,0.00029666,2]
[424399232,1780828254000,-221.56875293,0.00029666,2]
[424399224,1780828254000,-481.33144493,0.00029666,2]
[424399229,1780828254000,-433.86993468,0.00029666,2]
[424399233,1780828254000,-400.15674353,0.00029666,2]
[424399223,1780828254000,-165.10417388,0.00029666,2]
[424399225,1780828254000,-351.58722287,0.00029666,2]
[424399222,1780828254000,-352.74604861,0.00029666,2]
[424399220,1780828254000,-330.81811152,0.00029666,2]
[424399221,1780828254000,-483.72894934,0.00029666,2]
[424399237,1780828254000,-486.91830273,0.00029666,2]
[424399226,1780828254000,-565.92669675,0.00029666,2]
[424399236,1780828254000,-462.5205084,0.00029666,2]
[424399245,1780828254000,-493.84148626,0.00029667,2]
[424399238,1780828254000,-179.97120458,0.00029666,2]
[424399239,1780828254000,-542.17643821,0.00029667,2]
[424399256,1780828254000,-1177.50805992,0.00029688,7]
[424399255,1780828254000,-154.69601986,0.00029686,20]
[424399252,1780828254000,-257.96999648,0.00029684,7]
[424399249,1780828254000,-430.7708373,0.00029675,2]
[424399254,1780828254000,-552.96000351,0.00029684,7]
[424399250,1780828254000,-600.82914595,0.00029675,2]
[424399251,1780828254000,-444.0,0.00029679,2]
[424399253,1780828254000,-262.15000001,0.00029684,7]
[424399244,1780828254000,-375.20059644,0.00029667,2]
[424399242,1780828254000,-282.11882203,0.00029667,2]
[424399247,1780828254000,-414.42263338,0.00029675,2]
[424399246,1780828254000,-245.85345257,0.00029667,2]
[424399248,1780828254000,-405.47999082,0.00029675,2]
[424399241,1780828254000,-407.45684651,0.00029667,2]
[424399243,1780828254000,-632.67250171,0.00029667,2]
[424399240,1780828254000,-248.57911205,0.00029667,2]
[424399257,1780828255000,-452.96461381,0.00011821,2]
[424399261,1780828255000,-773.87103313,0.00027397,10]
[424399259,1780828255000,-3166.92512006,0.00011821,2]
[424399258,1780828255000,-22.11026613,0.00011821,2]
[424399262,1780828255000,-4272.4689549,0.00027397,10]
[424399260,1780828255000,-1171.79967414,0.00027397,10]
[424399263,1780828255000,-3964.21238912,0.00027397,10]
[424399264,1780828255000,-73.16764858,0.00027397,10]
[424399265,1780828255000,-628.53867994,0.00027397,10]
[424399266,1780828256000,152.0,8.534e-05,7]
[424399267,1780828334000,308.05364429,0.00030136,120]
[424399268,1780828373000,4000.0,0.00030136,120]
[424399272,1780828400000,500.0,0.00029425,120]
[424399271,1780828400000,500.0,0.00027661,120]
[424399269,1780828400000,500.0,0.00025792,120]
[424399270,1780828400000,500.0,0.00026727,120]
[424399273,1780828471000,368.31133207,0.0003,120]
[424399274,1780828509000,610.0,0.0002963,120]
[424399275,1780828521000,685.11,0.00029863,120]
[424399276,1780828531000,178.0,0.00029782,120]
[424399277,1780828581000,300.21246442,0.0003013,120]
[424399278,1780828588000,500.0,0.00029874,120]
[424399279,1780828589000,968.0,0.00029874,120]
[424399280,1780828591000,500.0,0.00030136,120]
[424399281,1780828633000,150.0,0.00014341,120]
[424399283,1780828641000,500.0,0.000296,120]
[424399282,1780828641000,500.0,0.000296,120]
[424399284,1780828643000,500.0,0.00029326,120]
[424399287,1780828643000,500.0,0.00029326,120]
[424399286,1780828643000,500.0,0.00029326,120]
[424399285,1780828643000,500.0,0.00029326,120]
[424399288,1780828645000,500.0,0.00029052,120]
[424399289,1780828646000,563.0,0.00029052,120]
[424399290,1780828772000,151.0,0.0003,120]
[424399291,1780828800000,500.0,0.00016232,120]
[424399292,1780828801000,150.0,0.00017795,120]
[424399293,1780828802000,160.55743778,0.00017795,120]
[424399294,1780828808000,427.0,0.00029595,120]
[424399295,1780828830000,178.0,0.0002974,120]
[424399296,1780828891000,1000.0,0.00029452,120]
[424399299,1780829003000,500.0,0.00027398,120]
[424399301,1780829004000,500.0,0.00029303,120]
[424399300,1780829004000,500.0,0.0002835,120]
[424399302,1780829049000,3148.455,0.0003013,120]
[424399304,1780829109000,299.0,0.00029614,120]
[424399305,1780829128000,178.0,0.00029759,120]
[424399306,1780829129000,309.62596177,0.00030137,120]
[424399307,1780829225000,728.64,0.00026986,120]
[424399394,1780829309000,1476.0,0.00029874,120]
[424399398,1780829310000,1476.0,0.00029874,120]
[424399397,1780829310000,1476.0,0.00029874,120]
[424399396,1780829310000,342.55,0.00029863,120]
[424399395,1780829310000,1476.0,0.00029874,120]
[424399399,1780829311000,1476.0,0.00029874,120]
[424399400,1780829311000,1476.0,0.00029874,120]
[424399401,1780829311000,1476.0,0.00029874,120]
[424399403,1780829312000,1476.0,0.00029874,120]
[424399402,1780829312000,1476.0,0.00029874,120]
[424399404,1780829313000,1478.0,0.00029874,120]
[424399408,1780829316000,500.0,0.000296,120]
[424399407,1780829316000,500.0,0.000296,120]
[424399406,1780829316000,500.0,0.000296,120]
[424399405,1780829316000,500.0,0.000296,120]
[424399410,1780829317000,500.0,0.000296,120]
[424399409,1780829317000,500.0,0.000296,120]
[424399412,1780829318000,500.0,0.000296,120]
[424399411,1780829318000,500.0,0.000296,120]
[424399413,1780829319000,902.0,0.000296,120]
[424399414,1780829341000,2000.0,0.00030136,120]
[424399475,1780829400000,150.0,0.00024614,120]
[424399476,1780829401000,150.0,0.00024614,120]
[424399477,1780829402000,186.33446267,0.00024614,120]
[424399478,1780829407000,209.0,0.00029686,120]
[424399479,1780829423000,941.0,0.00029326,120]
[424399480,1780829424000,941.0,0.00029326,120]
[424399484,1780829425000,941.0,0.00029326,120]
[424399483,1780829425000,941.0,0.00029326,120]
[424399482,1780829425000,941.0,0.00029326,120]
[424399481,1780829425000,941.0,0.00029326,120]
[424399487,1780829426000,941.0,0.00029326,120]
[424399486,1780829426000,941.0,0.00029326,120]
[424399485,1780829426000,941.0,0.00029326,120]
[424399488,1780829427000,949.0,0.00029326,120]
[424399547,1780829432000,-1227.0,0.0001396,2]
[424399532,1780829432000,-500.0,0.00013698,2]
[424399524,1780829432000,-4000.0,0.00013245,2]
[424399523,1780829432000,-500.0,0.0001307,3]
[424399522,1780829432000,-200.0,0.00012965,2]
[424399533,1780829432000,-500.0,0.00013698,2]
[424399527,1780829432000,-4000.0,0.00013568,2]
[424399529,1780829432000,-500.0,0.00013698,2]
[424399530,1780829432000,-500.0,0.00013698,2]
[424399531,1780829432000,-381.12,0.00013698,2]
[424399526,1780829432000,-463.56,0.0001348,2]
[424399525,1780829432000,-150.0,0.0001337,2]
[424399528,1780829432000,-362.529,0.00013598,2]
[424399534,1780829432000,-556.45,0.00013698,2]
[424399544,1780829432000,-1358.0,0.0001396,2]
[424399546,1780829432000,-382.0,0.0001396,2]
[424399545,1780829432000,-1274.0,0.0001396,2]
[424399536,1780829432000,-166.66,0.00013699,2]
[424399535,1780829432000,-958.65,0.00013699,2]
[424399539,1780829432000,-1977.9064,0.0001386,2]
[424399538,1780829432000,-166.66,0.00013836,2]
[424399542,1780829432000,-4000.0,0.00013891,2]
[424399537,1780829432000,-166.67,0.00013717,2]
[424399541,1780829432000,-547.4220635,0.0001386,2]
[424399540,1780829432000,-7400.0452,0.0001386,2]
[424399543,1780829432000,-3554.0,0.0001396,2]
[424399521,1780829432000,-4000.0,0.00012922,2]
[424399493,1780829432000,-150.0,8.079e-05,2]
[424399518,1780829432000,-403.27,0.00012338,2]
[424399511,1780829432000,-150.0,9.116e-05,2]
[424399492,1780829432000,-200.0,7.882e-05,2]
[424399494,1780829432000,-150.0,8.159e-05,2]
[424399505,1780829432000,-4000.0,8.67e-05,2]
[424399498,1780829432000,-250.0,8.287e-05,2]
[424399507,1780829432000,-221.71042592,8.67e-05,2]
[424399504,1780829432000,-247.0,8.399e-05,2]
[424399496,1780829432000,-150.0,8.287e-05,2]
[424399506,1780829432000,-193.0,8.67e-05,2]
[424399497,1780829432000,-547.42206351,8.287e-05,2]
[424399495,1780829432000,-150.0,8.239e-05,2]
[424399500,1780829432000,-548.88509203,8.3e-05,2]
[424399501,1780829432000,-150.0,8.319e-05,2]
[424399503,1780829432000,-215.83393831,8.371e-05,2]
[424399499,1780829432000,-250.0,8.287e-05,2]
[424399502,1780829432000,-160.0,8.371e-05,2]
[424399520,1780829432000,-927.13,0.00012766,2]
[424399519,1780829432000,-155.09,0.00012591,2]
[424399509,1780829432000,-4573.2283057,9.1e-05,2]
[424399508,1780829432000,-300.37659226,8.67e-05,2]
[424399517,1780829432000,-311.1787809,0.00012272,2]
[424399513,1780829432000,-250.0,0.0001095,2]
[424399512,1780829432000,-154.57,9.9e-05,7]
[424399514,1780829432000,-547.4220635,0.00011024,2]
[424399515,1780829432000,-463.607,0.00011602,2]
[424399516,1780829432000,-151.0,0.00012,2]
[424399510,1780829432000,-250.0,9.116e-05,2]
[424399549,1780829432000,-150.0,0.0001396,2]
[424399618,1780829432000,-2106.69544887,0.00016959,2]
[424399555,1780829432000,-166.66,0.0001411,2]
[424399597,1780829432000,-2066.8374983,0.00016295,2]
[424399592,1780829432000,-215.26951446,0.00016,2]
[424399593,1780829432000,-300.0,0.00016,2]
[424399600,1780829432000,-1143.79,0.00016438,2]
[424399599,1780829432000,-500.0,0.00016425,2]
[424399608,1780829432000,-500.0,0.00016877,2]
[424399610,1780829432000,-782.69,0.00016931,2]
[424399609,1780829432000,-1109.48,0.00016931,2]
[424399601,1780829432000,-806.89,0.00016438,2]
[424399602,1780829432000,-1228.73,0.00016438,2]
[424399604,1780829432000,-168.33,0.00016712,2]
[424399606,1780829432000,-150.0,0.0001684,2]
[424399603,1780829432000,-2000.0,0.00016666,2]
[424399611,1780829432000,-1191.87,0.00016932,2]
[424399607,1780829432000,-485.75289252,0.00016859,2]
[424399612,1780829432000,-156.36,0.00016949,3]
[424399613,1780829432000,-2106.69544887,0.00016959,2]
[424399619,1780829432000,-2106.69544887,0.00016959,2]
[424399616,1780829432000,-2106.69544887,0.00016959,2]
[424399615,1780829432000,-2106.69544887,0.00016959,2]
[424399617,1780829432000,-2106.69544887,0.00016959,2]
[424399620,1780829432000,-2106.69544887,0.00016959,2]
[424399614,1780829432000,-2106.69544887,0.00016959,2]
[424399621,1780829432000,-2106.69544887,0.00016959,2]
[424399553,1780829432000,-250.0,0.00014,2]
[424399594,1780829432000,-215.26951446,0.000161,2]
[424399598,1780829432000,-500.0,0.00016295,2]
[424399605,1780829432000,-186.0,0.000168,3]
[424399596,1780829432000,-500.0,0.00016295,2]
[424399550,1780829432000,-3642.0,0.0001396,2]
[424399595,1780829432000,-215.26951446,0.000162,2]
[424399551,1780829432000,-166.66,0.00013973,2]
[424399556,1780829432000,-161.66,0.00014135,2]
[424399548,1780829432000,-184.03335621,0.0001396,2]
[424399565,1780829432000,-1940.48,0.00014335,2]
[424399558,1780829432000,-4000.0,0.00014214,2]
[424399560,1780829432000,-166.66,0.00014247,2]
[424399561,1780829432000,-642.94,0.00014257,2]
[424399569,1780829432000,-166.66,0.00014384,2]
[424399572,1780829432000,-2000.0,0.00014815,2]
[424399574,1780829432000,-151.0,0.00014986,2]
[424399576,1780829432000,-185.66834357,0.00015,2]
[424399563,1780829432000,-200.0,0.00014301,2]
[424399578,1780829432000,-370.28,0.00015,2]
[424399589,1780829432000,-500.0,0.00015521,2]
[424399591,1780829432000,-500.0,0.00015973,2]
[424399588,1780829432000,-500.0,0.00015521,2]
[424399590,1780829432000,-668.45989242,0.00015973,2]
[424399582,1780829432000,-937.02227442,0.00015068,2]
[424399587,1780829432000,-29999.99,0.0001531,2]
[424399584,1780829432000,-594.69277004,0.00015068,2]
[424399585,1780829432000,-7298.87,0.0001531,2]
[424399586,1780829432000,-9999.99,0.0001531,2]
[424399580,1780829432000,-500.0,0.00015068,2]
[424399567,1780829432000,-150.0,0.00014341,2]
[424399583,1780829432000,-500.0,0.00015068,2]
[424399666,1780829433000,-2095.60757809,0.00016959,2]
[424399659,1780829433000,-2106.69544887,0.00016959,2]
[424399668,1780829433000,-2095.60757809,0.00016959,2]
[424399662,1780829433000,-2095.60757809,0.00016959,2]
[424399663,1780829433000,-2095.60757809,0.00016959,2]
[424399660,1780829433000,-2106.69544887,0.00016959,2]
[424399656,1780829433000,-2106.69544887,0.00016959,2]
[424399658,1780829433000,-2106.69544887,0.00016959,2]
[424399664,1780829433000,-2095.60757809,0.00016959,2]
[424399661,1780829433000,-2106.69544887,0.00016959,2]
[424399655,1780829433000,-2106.69544887,0.00016959,2]
[424399667,1780829433000,-2095.60757809,0.00016959,2]
[424399657,1780829433000,-2106.69544887,0.00016959,2]
[424399675,1780829433000,-2095.60757809,0.00016959,2]
[424399680,1780829433000,-2095.60757809,0.00016959,2]
[424399665,1780829433000,-2095.60757809,0.00016959,2]
[424399670,1780829433000,-2095.60757809,0.00016959,2]
[424399673,1780829433000,-2095.60757809,0.00016959,2]
[424399677,1780829433000,-2095.60757809,0.00016959,2]
[424399676,1780829433000,-2095.60757809,0.00016959,2]
[424399671,1780829433000,-2095.60757809,0.00016959,2]
[424399672,1780829433000,-2095.60757809,0.00016959,2]
[424399674,1780829433000,-2095.60757809,0.00016959,2]
[424399678,1780829433000,-2095.60757809,0.00016959,2]
[424399679,1780829433000,-2095.60757809,0.00016959,2]
[424399688,1780829433000,-2095.60757809,0.00016959,2]
[424399685,1780829433000,-2095.60757809,0.00016959,2]
[424399684,1780829433000,-2095.60757809,0.00016959,2]
[424399654,1780829433000,-2106.69544887,0.00016959,2]
[424399669,1780829433000,-2095.60757809,0.00016959,2]
[424399653,1780829433000,-2106.69544887,0.00016959,2]
[424399683,1780829433000,-2095.60757809,0.00016959,2]
[424399648,1780829433000,-2106.69544887,0.00016959,2]
[424399622,1780829433000,-2106.69544887,0.00016959,2]
[424399624,1780829433000,-2106.69544887,0.00016959,2]
[424399623,1780829433000,-2106.69544887,0.00016959,2]
[424399626,1780829433000,-2106.69544887,0.00016959,2]
[424399636,1780829433000,-2106.69544887,0.00016959,2]
[424399625,1780829433000,-2106.69544887,0.00016959,2]
[424399638,1780829433000,-2106.69544887,0.00016959,2]
[424399637,1780829433000,-2106.69544887,0.00016959,2]
[424399627,1780829433000,-2106.69544887,0.00016959,2]
[424399631,1780829433000,-2106.69544887,0.00016959,2]
[424399629,1780829433000,-2106.69544887,0.00016959,2]
[424399634,1780829433000,-2106.69544887,0.00016959,2]
[424399633,1780829433000,-2106.69544887,0.00016959,2]
[424399628,1780829433000,-2106.69544887,0.00016959,2]
[424399635,1780829433000,-2106.69544887,0.00016959,2]
[424399632,1780829433000,-2106.69544887,0.00016959,2]
[424399630,1780829433000,-2106.69544887,0.00016959,2]
[424399639,1780829433000,-2106.69544887,0.00016959,2]
[424399642,1780829433000,-2106.69544887,0.00016959,2]
[424399644,1780829433000,-2106.69544887,0.00016959,2]
[424399645,1780829433000,-2106.69544887,0.00016959,2]
[424399641,1780829433000,-2106.69544887,0.00016959,2]
[424399640,1780829433000,-2106.69544887,0.00016959,2]
[424399650,1780829433000,-2106.69544887,0.00016959,2]
[424399651,1780829433000,-2106.69544887,0.00016959,2]
[424399643,1780829433000,-2106.69544887,0.00016959,2]
[424399649,1780829433000,-2106.69544887,0.00016959,2]
[424399647,1780829433000,-2106.69544887,0.00016959,2]
[424399646,1780829433000,-2106.69544887,0.00016959,2]
[424399652,1780829433000,-2106.69544887,0.00016959,2]
[424399687,1780829433000,-2095.60757809,0.00016959,2]
[424399750,1780829433000,-151.0,0.00018644,2]
[424399689,1780829433000,-2095.60757809,0.00016959,2]
[424399725,1780829433000,-150.99,0.00017728,2]
[424399719,1780829433000,-809.74,0.00017728,2]
[424399722,1780829433000,-943.8,0.00017728,2]
[424399720,1780829433000,-9800.09,0.00017728,2]
[424399727,1780829433000,-500.0,0.00017781,2]
[424399724,1780829433000,-310.15,0.00017728,2]
[424399721,1780829433000,-2677.43,0.00017728,2]
[424399723,1780829433000,-1218.61,0.00017728,2]
[424399726,1780829433000,-299.99,0.00017728,4]
[424399731,1780829433000,-1040.84,0.00018082,2]
[424399730,1780829433000,-350.0,0.00018,2]
[424399742,1780829433000,-500.0,0.00018531,2]
[424399733,1780829433000,-500.0,0.00018233,2]
[424399741,1780829433000,-2000.0,0.00018518,2]
[424399732,1780829433000,-166.72606526,0.000182,2]
[424399736,1780829433000,-166.72606526,0.000184,2]
[424399735,1780829433000,-150.0,0.000184,2]
[424399738,1780829433000,-231.02597309,0.000184,2]
[424399737,1780829433000,-231.02597309,0.000184,2]
[424399739,1780829433000,-231.02597309,0.000184,2]
[424399740,1780829433000,-2500.0,0.00018432,2]
[424399743,1780829433000,-500.0,0.00018532,2]
[424399745,1780829433000,-561.15647577,0.00018644,2]
[424399744,1780829433000,-2893.29,0.00018533,2]
[424399746,1780829433000,-207.43286229,0.00018644,2]
[424399747,1780829433000,-209.40437684,0.00018644,2]
[424399749,1780829433000,-693.39197629,0.00018644,2]
[424399748,1780829433000,-151.0,0.00018644,2]
[424399681,1780829433000,-2095.60757809,0.00016959,2]
[424399729,1780829433000,-166.72606526,0.00018,2]
[424399717,1780829433000,-2057.46,0.00017728,5]
[424399734,1780829433000,-312.72,0.00018319,3]
[424399718,1780829433000,-999.99,0.00017728,2]
[424399728,1780829433000,-463.56,0.00017919,2]
[424399686,1780829433000,-2095.60757809,0.00016959,2]
[424399690,1780829433000,-2095.60757809,0.00016959,2]
[424399692,1780829433000,-2095.60757809,0.00016959,2]
[424399693,1780829433000,-2095.60757809,0.00016959,2]
[424399695,1780829433000,-2095.60757806,0.00016959,2]
[424399696,1780829433000,-2095.60757806,0.00016959,2]
[424399691,1780829433000,-2095.60757809,0.00016959,2]
[424399694,1780829433000,-2095.60757809,0.00016959,2]
[424399701,1780829433000,-184.0,0.00016959,2]
[424399702,1780829433000,-184.0,0.00016959,2]
[424399698,1780829433000,-2095.60757806,0.00016959,2]
[424399699,1780829433000,-2095.60757806,0.00016959,2]
[424399700,1780829433000,-184.0,0.00016959,2]
[424399697,1780829433000,-2095.60757806,0.00016959,2]
[424399682,1780829433000,-2095.60757809,0.00016959,2]
[424399712,1780829433000,-1000.0,0.00017218,2]
[424399714,1780829433000,-1075.16,0.00017424,2]
[424399715,1780829433000,-1155.01,0.00017425,2]
[424399716,1780829433000,-9999.99,0.00017728,2]
[424399703,1780829433000,-184.0,0.00016959,2]
[424399707,1780829433000,-382.0,0.0001696,2]
[424399706,1780829433000,-1274.0,0.0001696,2]
[424399708,1780829433000,-1227.0,0.0001696,2]
[424399709,1780829433000,-150.0,0.0001696,2]
[424399704,1780829433000,-3554.0,0.0001696,2]
[424399705,1780829433000,-1358.0,0.0001696,2]
[424399713,1780829433000,-500.0,0.00017329,2]
[424399711,1780829433000,-927.13,0.00017204,2]
[424399710,1780829433000,-3642.0,0.0001696,2]
[424399796,1780829434000,-152.0,0.00018644,2]
[424399797,1780829434000,-500.0,0.00018644,2]
[424399793,1780829434000,-151.0,0.00018644,2]
[424399788,1780829434000,-152.0,0.00018644,2]
[424399794,1780829434000,-500.0,0.00018644,2]
[424399784,1780829434000,-152.0,0.00018644,2]
[424399785,1780829434000,-151.0,0.00018644,2]
[424399791,1780829434000,-151.0,0.00018644,2]
[424399787,1780829434000,-151.0,0.00018644,2]
[424399795,1780829434000,-151.0,0.00018644,2]
[424399786,1780829434000,-500.0,0.00018644,2]
[424399790,1780829434000,-500.0,0.00018644,2]
[424399792,1780829434000,-152.0,0.00018644,2]
[424399789,1780829434000,-151.0,0.00018644,2]
[424399798,1780829434000,-151.0,0.00018644,2]
[424399805,1780829434000,-151.0,0.00018644,2]
[424399800,1780829434000,-152.0,0.00018644,2]
[424399804,1780829434000,-152.0,0.00018644,2]
[424399802,1780829434000,-151.0,0.00018644,2]
[424399803,1780829434000,-151.0,0.00018644,2]
[424399806,1780829434000,-500.0,0.00018644,2]
[424399809,1780829434000,-151.0,0.00018644,2]
[424399799,1780829434000,-151.0,0.00018644,2]
[424399807,1780829434000,-151.0,0.00018644,2]
[424399808,1780829434000,-152.0,0.00018644,2]
[424399810,1780829434000,-500.0,0.00018644,2]
[424399813,1780829434000,-151.0,0.00018644,2]
[424399812,1780829434000,-151.0,0.00018644,2]
[424399819,1780829434000,-151.0,0.00018809,2]
[424399801,1780829434000,-500.0,0.00018644,2]
[424399777,1780829434000,-151.0,0.00018644,2]
[424399754,1780829434000,-151.0,0.00018644,2]
[424399780,1780829434000,-151.0,0.00018644,2]
[424399811,1780829434000,-151.0,0.00018644,2]
[424399756,1780829434000,-151.0,0.00018644,2]
[424399752,1780829434000,-151.0,0.00018644,2]
[424399753,1780829434000,-151.0,0.00018644,2]